fUST/lending_fUST_20250901
["ID","MTS","AMOUNT","RATE_DAILY","PERIOD"]
[382687934,1756709444849,-699.51,0.00014289,2]
[382687936,1756709444859,-482.7155595,0.00014289,2]
[382687938,1756709444868,-480.0,0.00014289,2]
[382687940,1756709444878,-480.0,0.00014289,2]
[382687942,1756709444887,-844.0,0.00014289,2]
[382687944,1756709444896,-480.0,0.00014289,2]
[382687946,1756709444906,-480.0,0.00014289,2]
[382687948,1756709444915,-480.0,0.00014289,2]
[382687950,1756709444924,-480.0,0.00014289,2]
[382687952,1756709444934,-481.71160706,0.00014289,2]
[382687954,1756709444943,-480.0,0.00014289,2]
[382687956,1756709444952,-480.0,0.00014289,2]
[382687958,1756709444962,-480.0,0.00014289,2]
[382687960,1756709444972,-424.32118277,0.00014289,2]
[382687962,1756709444982,-363.9369586,0.00014289,2]
[382687964,1756709444992,-480.0,0.00014289,2]
[382687966,1756709445001,-480.0,0.00014289,2]
[382687968,1756709445011,-480.0,0.00014289,2]
[382687970,1756709445021,-480.0,0.00014289,2]
[382687972,1756709445030,-480.0,0.00014289,2]
[382687974,1756709445040,-480.0,0.00014289,2]
[382687976,1756709445050,-480.0,0.00014289,2]
[382687978,1756709445060,-480.0,0.00014289,2]
[382687980,1756709445070,-480.0,0.00014289,2]
[382687982,1756709445080,-480.0,0.00014289,2]
[382687984,1756709445089,-480.0,0.00014289,2]
[382687986,1756709445099,-618.18,0.00014289,2]
[382687988,1756709445108,-550.2,0.00014289,2]
[382687990,1756709445118,-480.0,0.00014289,2]
[382687992,1756709445127,-606.88,0.00014289,2]
[382687994,1756709445137,-480.0,0.00014289,2]
[382687996,1756709445146,-1200.2,0.00014289,2]
[382687998,1756709445158,-613.97902316,0.00014289,2]
[382688000,1756709445168,-480.0,0.00014289,2]
[382688002,1756709445178,-480.0,0.00014289,2]
[382688004,1756709445187,-480.0,0.00014289,2]
[382688006,1756709445196,-499.9517595,0.00014289,2]
[382688008,1756709445206,-480.0,0.00014289,2]
[382688010,1756709445216,-480.0,0.00014289,2]
[382688012,1756709445225,-480.0,0.00014289,2]
[382688014,1756709445235,-848.1,0.00014289,2]
[382688016,1756709445245,-480.0,0.00014289,2]
[382688018,1756709445254,-480.0,0.00014289,2]
[382688020,1756709445263,-1000.49,0.00014289,2]
[382688022,1756709445273,-1087.32,0.00014289,2]
[382688024,1756709445283,-437.65009759,0.00014289,2]
[382688026,1756709445293,-480.0,0.00014289,2]
[382688028,1756709445303,-480.0,0.00014289,2]
[382688030,1756709445312,-480.0,0.00014289,2]
[382688032,1756709445322,-1120.56,0.00014289,2]
[382688034,1756709445331,-527.52009378,0.00014289,2]
[382688036,1756709445342,-480.0,0.00014289,2]
[382688038,1756709445353,-480.0,0.00014289,2]
[382688040,1756709445362,-975.72,0.00014289,2]
[382688042,1756709445372,-480.0,0.00014289,2]
[382688045,1756709445382,-480.0,0.00014289,2]
[382688047,1756709445392,-302.31394063,0.00014289,2]
[382688049,1756709445403,-483.5030486,0.00014289,2]
[382688051,1756709445413,-480.0,0.00014289,2]
[382688054,1756709445423,-480.0,0.00014289,2]
[382688057,1756709445434,-480.0,0.00014289,2]
[382688060,1756709445444,-480.0,0.00014289,2]
[382688062,1756709445455,-480.0,0.00014289,2]
[382688064,1756709445465,-480.0,0.00014289,2]
[382688067,1756709445475,-482.55470668,0.00014289,2]
[382688069,1756709445486,-843.86,0.00014289,2]
[382688071,1756709445496,-480.0,0.00014289,2]
[382688073,1756709445506,-480.0,0.00014289,2]
[382688075,1756709445516,-480.0,0.00014289,2]
[382688077,1756709445526,-521.55,0.00014289,2]
[382688079,1756709445539,-480.0,0.00014289,2]
[382688081,1756709445549,-480.0,0.00014289,2]
[382688083,1756709445562,-1203.13,0.00014289,2]
[382688085,1756709445572,-483.50344514,0.00014289,2]
[382688087,1756709445582,-480.0,0.00014289,2]
[382688089,1756709445591,-557.37,0.00014289,2]
[382688090,1756709445603,-480.0,0.00014289,2]
[382688091,1756709445612,-580.54,0.00014289,2]
[382688092,1756709445622,-480.0,0.00014289,2]
[382688093,1756709445633,-480.0,0.00014289,2]
[382688094,1756709445642,-480.0,0.00014289,2]
[382688095,1756709445652,-480.0,0.00014289,2]
[382688096,1756709445662,-480.0,0.00014289,2]
[382688097,1756709445672,-1014.76,0.00014289,2]
[382688098,1756709445681,-1131.7,0.00014289,2]
[382688100,1756709445691,-1035.01,0.00014289,2]
[382688102,1756709445700,-480.0,0.00014289,2]
[382688104,1756709445710,-603.69673096,0.00014289,2]
[382688105,1756709445720,-480.0,0.00014289,2]
[382688106,1756709445729,-480.0,0.00014289,2]
[382688107,1756709445738,-480.0,0.00014289,2]
[382688108,1756709445748,-1045.12,0.00014289,2]
[382688109,1756709445757,-1050.59,0.00014289,2]
[382688110,1756709445767,-480.0,0.00014289,2]
[382688111,1756709445776,-480.0,0.00014289,2]
[382688112,1756709445786,-480.0,0.00014289,2]
[382688113,1756709445796,-480.0,0.00014289,2]
[382688114,1756709445805,-480.0,0.00014289,2]
[382688115,1756709445816,-529.98578385,0.00014289,2]
[382688116,1756709445825,-1203.48,0.00014289,2]
[382688117,1756709445835,-480.0,0.00014289,2]
[382688118,1756709445844,-480.0,0.00014289,2]
[382688119,1756709445854,-349.42872659,0.00014289,2]
[382688121,1756709445863,-1256.15,0.00014289,2]
[382688123,1756709445876,-480.0,0.00014289,2]
[382688125,1756709445887,-517.33,0.00014289,2]
[382688127,1756709445896,-480.0,0.00014289,2]
[382688129,1756709445907,-480.0,0.00014289,2]
[382688131,1756709445917,-480.0,0.00014289,2]
[382688133,1756709445927,-485.9695288,0.00014289,2]
[382688135,1756709445937,-480.0,0.00014289,2]
[382688137,1756709445947,-480.0,0.00014289,2]
[382688139,1756709445957,-669.17,0.00014289,2]
[382688141,1756709445967,-480.0,0.00014289,2]
[382688143,1756709445976,-528.53,0.00014289,2]
[382688145,1756709445986,-528.84,0.00014289,2]
[382688147,1756709445996,-480.0,0.00014289,2]
[382688149,1756709446005,-480.0,0.00014289,2]
[382688151,1756709446015,-231.59225965,0.00014289,2]
[382688153,1756709446024,-480.0,0.00014289,2]
[382688155,1756709446035,-480.0,0.00014289,2]
[382688157,1756709446044,-524.55,0.00014289,2]
[382688159,1756709446053,-480.0,0.00014289,2]
[382688161,1756709446063,-1740.15,0.00014289,2]
[382688163,1756709446073,-1116.03,0.00014289,2]
[382688165,1756709446083,-480.0,0.00014289,2]
[382688167,1756709446092,-480.0,0.00014289,2]
[382688169,1756709446102,-480.0,0.00014289,2]
[382688171,1756709446112,-608.56,0.00014289,2]
[382688173,1756709446122,-483.39713193,0.00014289,2]
[382688175,1756709446132,-572.95,0.00014289,2]
[382688177,1756709446143,-480.0,0.00014289,2]
[382688179,1756709446153,-1177.25,0.00014289,2]
[382688181,1756709446163,-480.0,0.00014289,2]
[382688183,1756709446173,-616.82,0.00014289,2]
[382688185,1756709446182,-480.0,0.00014289,2]
[382688187,1756709446192,-480.0,0.00014289,2]
[382688190,1756709446201,-480.0,0.00014289,2]
[382688192,1756709446212,-1049.72,0.00014289,2]
[382688194,1756709446222,-480.0,0.00014289,2]
[382688196,1756709446232,-480.0,0.00014289,2]
[382688198,1756709446241,-480.0,0.00014289,2]
[382688200,1756709446251,-507.22,0.00014289,2]
[382688202,1756709446260,-482.36520786,0.00014289,2]
[382688204,1756709446270,-480.0,0.00014289,2]
[382688206,1756709446282,-480.0,0.00014289,2]
[382688208,1756709446292,-480.0,0.00014289,2]
[382688210,1756709446302,-480.0,0.00014289,2]
[382688212,1756709446312,-480.0,0.00014289,2]
[382688214,1756709446322,-480.0,0.00014289,2]
[382688216,1756709446332,-480.0,0.00014289,2]
[382688218,1756709446342,-3085.93,0.00014295,2]
[382688220,1756709446351,-548.99,0.00014295,2]
[382688222,1756709446361,-480.0,0.00014295,2]
[382688224,1756709446371,-1277.53,0.00014295,2]
[382688226,1756709446380,-1075.57,0.00014295,2]
[382688228,1756709446390,-1089.98,0.00014295,2]
[382688230,1756709446401,-481.71634681,0.00014295,2]
[382688232,1756709446410,-2063.15,0.00014295,2]
[382688234,1756709446420,-654.81,0.00014295,2]
[382688236,1756709446430,-1325.44,0.00014295,2]
[382688238,1756709446439,-571.25,0.00014295,2]
[382688240,1756709446448,-500.0,0.00014295,2]
[382688242,1756709446458,-3028.984135,0.00014296,2]
[382688244,1756709446469,-717.32,0.00014296,2]
[382688246,1756709446478,-976.37,0.00014296,2]
[382688248,1756709446488,-1034.15,0.00014296,2]
[382688250,1756709446499,-516.13,0.00014296,2]
[382688252,1756709446509,-480.0,0.00014296,2]
[382688254,1756709446519,-602.23,0.00014296,2]
[382688256,1756709446529,-563.18,0.00014296,2]
[382688258,1756709446540,-480.0,0.00014296,2]
[382688260,1756709446552,-554.6,0.00014296,2]
[382688262,1756709446563,-789.59,0.00014296,2]
[382688264,1756709446574,-528.89,0.00014296,2]
[382688266,1756709446583,-480.0,0.00014296,2]
[382688269,1756709446593,-481.89689575,0.00014296,2]
[382688271,1756709446605,-814.14,0.00014296,2]
[382688273,1756709446615,-1421.44,0.00014296,2]
[382688275,1756709446625,-798.55,0.00014296,2]
[382688277,1756709446635,-480.0,0.00014296,2]
[382688279,1756709446645,-346.94896235,0.00014296,2]
[382688281,1756709446659,-480.0,0.00014296,2]
[382688283,1756709446670,-541.56,0.00014296,2]
[382688285,1756709446680,-480.0,0.00014296,2]
[382688287,1756709446689,-480.0,0.00014296,2]
[382688289,1756709446699,-480.0,0.00014296,2]
[382688291,1756709446709,-480.0,0.00014296,2]
[382688293,1756709446718,-151.0,0.00014296,2]
[382688295,1756709446728,-480.0,0.00014298,2]
[382688297,1756709446737,-480.0,0.00014298,2]
[382688299,1756709446746,-480.0,0.00014298,2]
[382688301,1756709446756,-499.5,0.00014298,2]
[382688303,1756709446766,-948.6,0.00014298,2]
[382688305,1756709446775,-840.31,0.00014298,2]
[382688307,1756709446786,-480.0,0.00014298,2]
[382688309,1756709446795,-480.0,0.00014298,2]
[382688311,1756709446805,-480.0,0.00014298,2]
[382688313,1756709446815,-480.0,0.00014298,2]
[382688315,1756709446824,-665.18,0.00014298,2]
[382688317,1756709446834,-877.59,0.00014298,2]
[382688319,1756709446843,-720.95,0.00014298,2]
[382688321,1756709446853,-480.0,0.00014298,2]
[382688323,1756709446862,-480.0,0.00014298,2]
[382688325,1756709446872,-480.0,0.00014298,2]
[382688327,1756709446881,-480.0,0.00014298,2]
[382688329,1756709446891,-480.0,0.00014298,2]
[382688331,1756709446901,-480.0,0.00014298,2]
[382688333,1756709446910,-491.77,0.00014298,2]
[382688335,1756709446920,-591.96021485,0.00014298,2]
[382688337,1756709446930,-480.0,0.00014298,2]
[382688339,1756709446940,-480.0,0.00014298,2]
[382688341,1756709446949,-480.0,0.00014298,2]
[382688343,1756709446960,-527.42,0.00014298,2]
[382688345,1756709446969,-480.0,0.00014298,2]
[382688347,1756709446979,-952.21,0.00014298,2]
[382688349,1756709446988,-480.0,0.00014298,2]
[382688351,1756709446998,-480.0,0.00014298,2]
[382688353,1756709447007,-480.0,0.00014298,2]
[382688355,1756709447017,-480.0,0.00014298,2]
[382688357,1756709447027,-480.0,0.00014298,2]
[382688359,1756709447037,-480.0,0.00014298,2]
[382688361,1756709447047,-480.0,0.00014298,2]
[382688363,1756709447057,-418.73002565,0.00014298,2]
[382688365,1756709447066,-480.0,0.00014298,2]
[382688367,1756709447076,-480.0,0.00014298,2]
[382688369,1756709447087,-480.0,0.00014298,2]
[382688371,1756709447097,-480.0,0.00014298,2]
[382688373,1756709447106,-480.0,0.00014298,2]
[382688375,1756709447117,-480.0,0.00014298,2]
[382688378,1756709447128,-480.0,0.00014298,2]
[382688380,1756709447139,-187.69239414,0.00014298,2]
[382688382,1756709447150,-492.4909545,0.00014298,2]
[382688384,1756709447160,-568.74,0.00014298,2]
[382688386,1756709447170,-480.0,0.00014298,2]
[382688388,1756709447181,-480.0,0.00014298,2]
[382688390,1756709447190,-480.0,0.00014298,2]
[382688392,1756709447200,-669.53,0.00014298,2]
[382688394,1756709447210,-480.0,0.00014298,2]
[382688396,1756709447220,-480.0,0.00014298,2]
[382688398,1756709447230,-480.0,0.00014298,2]
[382688400,1756709447240,-480.0,0.00014298,2]
[382688402,1756709447250,-480.0,0.00014298,2]
[382688404,1756709447260,-480.0,0.00014298,2]
[382688406,1756709447270,-597.6494497,0.00014298,2]
[382688408,1756709447280,-480.0,0.00014298,2]
[382688410,1756709447289,-722.37,0.00014298,2]
[382688412,1756709447299,-480.0,0.00014298,2]
[382688414,1756709447309,-480.0,0.00014298,2]
[382688416,1756709447319,-480.0,0.00014298,2]
[382688418,1756709447330,-480.0,0.00014298,2]
[382688420,1756709447340,-482.32302957,0.00014298,2]
[382688422,1756709447350,-480.0,0.00014298,2]
[382688424,1756709447359,-833.89,0.00014298,2]
[382688426,1756709447369,-322.1758387,0.00014298,2]
[382688428,1756709447379,-480.0,0.00014298,2]
[382688430,1756709447388,-480.0,0.00014298,2]
[382688432,1756709447398,-480.0,0.00014298,2]
[382688434,1756709447407,-480.0,0.00014298,2]
[382688436,1756709447417,-480.0,0.00014298,2]
[382688438,1756709447427,-480.0,0.00014298,2]
[382688440,1756709447437,-480.0,0.00014298,2]
[382688442,1756709447446,-585.47,0.00014298,2]
[382688444,1756709447456,-480.0,0.00014298,2]
[382688446,1756709447466,-480.0,0.00014298,2]
[382688448,1756709447476,-480.0,0.00014298,2]
[382688450,1756709447486,-480.0,0.00014298,2]
[382688452,1756709447496,-480.0,0.00014298,2]
[382688454,1756709447506,-480.0,0.00014298,2]
[382688456,1756709447516,-480.0,0.00014298,2]
[382688458,1756709447526,-186.66316819,0.00014298,2]
[382688460,1756709447537,-151.0,0.00014298,2]
[382688462,1756709447548,-151.0,0.00014298,2]
[382688464,1756709447561,-167.206298,0.00014298,2]
[382688466,1756709447571,-167.206298,0.00014298,2]
[382688468,1756709447581,-167.206298,0.00014298,2]
[382688470,1756709447591,-167.206298,0.00014298,2]
[382688472,1756709447603,-151.0,0.00014298,2]
[382688475,1756709447613,-582.98,0.00014298,2]
[382688477,1756709447624,-154.132715,0.00014298,2]
[382688497,1756709447791,-151.0,0.00014298,2]
[382688500,1756709447824,-480.0,0.00014298,2]
[382688502,1756709447834,-151.0,0.00014298,2]
[382688504,1756709447843,-151.0,0.00014298,2]
[382688506,1756709447853,-244.533514,0.00014298,2]
[382688508,1756709447862,-480.0,0.00014298,2]
[382688510,1756709447871,-1227.05,0.00014298,2]
[382688512,1756709447881,-151.0,0.00014298,2]
[382688514,1756709447891,-480.0,0.00014298,2]
[382688516,1756709447900,-674.0,0.00014298,2]
[382688518,1756709447909,-480.0,0.00014298,2]
[382688520,1756709447919,-151.0,0.00014298,2]
[382688522,1756709447928,-151.0,0.00014298,2]
[382688524,1756709447938,-151.0,0.00014298,2]
[382688526,1756709447948,-156.210329,0.00014298,2]
[382688528,1756709447957,-151.0,0.00014298,2]
[382688530,1756709447966,-480.0,0.00014298,2]
[382688532,1756709447975,-151.0,0.00014298,2]
[382688534,1756709447985,-480.0,0.00014298,2]
[382688536,1756709447994,-480.0,0.00014298,2]
[382688538,1756709448004,-151.0,0.00014298,2]
[382688540,1756709448013,-151.0,0.00014298,2]
[382688542,1756709448023,-151.0,0.00014298,2]
[382688544,1756709448033,-151.0,0.00014298,2]
[382688546,1756709448042,-151.0,0.00014298,2]
[382688548,1756709448052,-480.0,0.00014298,2]
[382688550,1756709448062,-480.21,0.00014298,2]
[382688552,1756709448071,-151.0,0.000143,2]
[382688554,1756709448081,-304.76388619,0.000143,2]
[382688556,1756709448090,-480.0,0.000143,2]
[382688558,1756709448100,-583.11,0.000143,2]
[382688560,1756709448109,-506.66,0.000143,2]
[382688562,1756709448119,-480.0,0.000143,2]
[382688564,1756709448128,-484.73,0.000143,2]
[382688566,1756709448138,-151.0,0.000143,2]
[382688568,1756709448148,-155.38,0.00014312,2]
[382688570,1756709448157,-461.0,0.00014321,2]
[382688572,1756709448167,-155.38,0.00014327,2]
[382688574,1756709448176,-1848.71245745,0.00014334,2]
[382688576,1756709448186,-155.35,0.00014341,2]
[382688578,1756709448196,-151.0,0.000144,2]
[382688579,1756709448205,-151.0,0.000144,2]
[382688580,1756709448215,-151.0,0.000144,2]
[382688581,1756709448225,-170.00457,0.00014404,2]
[382688582,1756709448234,-170.00457,0.00014404,2]
[382688583,1756709448243,-170.00457,0.00014404,2]
[382688584,1756709448254,-170.00457,0.00014404,2]
[382688585,1756709448263,-183.492138,0.00014404,2]
[382688586,1756709448273,-151.0,0.00014404,2]
[382688587,1756709448284,-461.0,0.00014428,2]
[382688588,1756709448294,-151.0,0.000145,2]
[382688589,1756709448304,-151.0,0.000145,2]
[382688590,1756709448314,-406.73901257,0.00014502,2]
[382688592,1756709448324,-1626.95605027,0.00014502,2]
[382688595,1756709448335,-627.58930043,0.00014502,2]
[382688596,1756709448344,-2510.35720171,0.00014502,2]
[382688599,1756709448354,-5642.65540015,0.00014502,2]
[382688601,1756709448363,-3656.99046198,0.00014502,2]
[382688603,1756709448373,-391.557,0.00014504,2]
[382688605,1756709448383,-393.0,0.00014533,2]
[382688606,1756709448393,-1848.71245745,0.0001454,2]
[382688608,1756709448403,-4006.10404426,0.00014558,2]
[382688611,1756709448414,-151.0,0.00014558,2]
[382688613,1756709448423,-195.389863,0.00014558,2]
[382688615,1756709448433,-151.0,0.00014558,2]
[382688617,1756709448443,-151.0,0.00014558,2]
[382688619,1756709448453,-151.0,0.00014558,2]
[382688621,1756709448462,-151.0,0.00014558,2]
[382688623,1756709448475,-151.0,0.00014558,2]
[382688625,1756709448484,-159.919406,0.00014558,2]
[382688627,1756709448494,-151.0,0.00014558,2]
[382688629,1756709448504,-151.0,0.00014558,2]
[382688631,1756709448513,-151.0,0.00014558,2]
[382688633,1756709448522,-151.0,0.00014558,2]
[382688635,1756709448532,-151.0,0.00014558,2]
[382688637,1756709448542,-480.0,0.0001456,2]
[382688639,1756709448552,-480.0,0.0001456,2]
[382688641,1756709448564,-480.0,0.00014561,2]
[382688643,1756709448574,-464.82710566,0.00014561,2]
[382688645,1756709448584,-480.0,0.00014561,2]
[382688647,1756709448595,-928.96,0.00014561,2]
[382688649,1756709448604,-480.0,0.00014561,2]
[382688651,1756709448614,-1084.71,0.00014561,2]
[382688653,1756709448624,-480.0,0.00014561,2]
[382688655,1756709448634,-480.0,0.00014561,2]
[382688657,1756709448644,-480.0,0.00014561,2]
[382688659,1756709448653,-521.33,0.00014561,2]
[382688661,1756709448662,-480.0,0.00014561,2]
[382688663,1756709448671,-480.0,0.00014561,2]
[382688665,1756709448681,-486.93340325,0.00014561,2]
[382688667,1756709448690,-480.0,0.00014561,2]
[382688669,1756709448700,-480.0,0.00014561,2]
[382688671,1756709448709,-1242.55,0.00014561,2]
[382688673,1756709448719,-661.65,0.00014561,2]
[382688675,1756709448734,-480.0,0.00014561,2]
[382688677,1756709448744,-484.72,0.00014561,2]
[382688679,1756709448753,-480.0,0.00014561,2]
[382688681,1756709448763,-496.43,0.00014561,2]
[382688683,1756709448772,-486.2030445,0.00014561,2]
[382688685,1756709448783,-480.0,0.00014561,2]
[382688687,1756709448794,-480.0,0.00014561,2]
[382688689,1756709448803,-480.0,0.00014561,2]
[382688691,1756709448813,-480.0,0.00014561,2]
[382688693,1756709448822,-480.0,0.00014561,2]
[382688695,1756709448831,-480.0,0.00014561,2]
[382688698,1756709448841,-505.05,0.00014561,2]
[382688700,1756709448851,-480.0,0.00014561,2]
[382688702,1756709448859,-480.0,0.00014561,2]
[382688704,1756709448868,-550.47,0.00014561,2]
[382688706,1756709448877,-1886.77,0.00014561,2]
[382688708,1756709448886,-1094.83,0.00014561,2]
[382688710,1756709448896,-480.0,0.00014561,2]
[382688712,1756709448905,-480.0,0.00014561,2]
[382688714,1756709448914,-1706.96,0.00014561,2]
[382688716,1756709448923,-940.01,0.00014561,2]
[382688718,1756709448933,-480.0,0.00014561,2]
[382688720,1756709448942,-480.0,0.00014561,2]
[382688722,1756709448952,-1306.42,0.00014561,2]
[382688724,1756709448961,-601.99,0.00014561,2]
[382688726,1756709448970,-480.0,0.00014561,2]
[382688728,1756709448980,-665.68,0.00014561,2]
[382688730,1756709448989,-480.0,0.00014561,2]
[382688732,1756709448999,-480.0,0.00014561,2]
[382688734,1756709449008,-151.0,0.00014562,2]
[382688736,1756709449018,-151.0,0.00014562,2]
[382688738,1756709449028,-151.0,0.00014562,2]
[382688739,1756709449039,-151.0,0.00014562,2]
[382688742,1756709449049,-151.0,0.00014562,2]
[382688743,1756709449059,-151.0,0.00014562,2]
[382688746,1756709449069,-480.0,0.00014562,2]
[382688748,1756709449079,-480.0,0.00014562,2]
[382688749,1756709449088,-607.07,0.00014562,2]
[382688752,1756709449098,-942.49,0.00014562,2]
[382688754,1756709449108,-650.28,0.00014562,2]
[382688756,1756709449118,-480.0,0.00014562,2]
[382688757,1756709449127,-480.0,0.00014562,2]
[382688759,1756709449137,-480.0,0.00014562,2]
[382688761,1756709449146,-480.0,0.00014562,2]
[382688763,1756709449156,-659.03,0.00014562,2]
[382688765,1756709449165,-525.07,0.00014562,2]
[382688767,1756709449175,-853.34,0.00014562,2]
[382688770,1756709449185,-3345.49,0.00014562,2]
[382688771,1756709449195,-480.0,0.00014562,2]
[382688774,1756709449204,-826.12,0.00014562,2]
[382688776,1756709449214,-784.34,0.00014562,2]
[382688778,1756709449223,-480.0,0.00014562,2]
[382688780,1756709449232,-1006.51,0.00014562,2]
[382688781,1756709449241,-540.36,0.00014562,2]
[382688784,1756709449251,-1306.57,0.00014562,2]
[382688786,1756709449261,-480.0,0.00014562,2]
[382688788,1756709449271,-480.0,0.00014562,2]
[382688790,1756709449280,-582.97,0.00014562,2]
[382688792,1756709449290,-480.0,0.00014562,2]
[382688794,1756709449300,-480.0,0.00014562,2]
[382688796,1756709449309,-792.27,0.00014562,2]
[382688798,1756709449319,-480.0,0.00014562,2]
[382688800,1756709449328,-501.45,0.00014562,2]
[382688802,1756709449337,-776.75,0.00014562,2]
[382688804,1756709449347,-4916.94,0.00014562,2]
[382688806,1756709449357,-480.0,0.00014562,2]
[382688808,1756709449368,-480.0,0.00014562,2]
[382688809,1756709449379,-4658.25,0.00014562,2]
[382688812,1756709449388,-603.93,0.00014562,2]
[382688814,1756709449398,-1062.71,0.00014562,2]
[382688816,1756709449408,-659.53,0.00014562,2]
[382688818,1756709449417,-1791.74,0.00014562,2]
[382688820,1756709449427,-616.0,0.00014562,2]
[382688822,1756709449438,-480.0,0.00014562,2]
[382688824,1756709449447,-480.0,0.00014562,2]
[382688826,1756709449458,-823.23,0.00014562,2]
[382688828,1756709449467,-480.0,0.00014562,2]
[382688830,1756709449476,-480.0,0.00014562,2]
[382688832,1756709449486,-480.0,0.00014562,2]
[382688834,1756709449497,-4582.19,0.00014562,2]
[382688836,1756709449508,-480.0,0.00014562,2]
[382688838,1756709449517,-480.0,0.00014562,2]
[382688840,1756709449527,-480.0,0.00014562,2]
[382688842,1756709449538,-480.0,0.00014562,2]
[382688844,1756709449548,-1063.23,0.00014562,2]
[382688846,1756709449566,-987.62,0.00014562,2]
[382688848,1756709449576,-480.0,0.00014562,2]
[382688850,1756709449586,-739.54,0.00014562,2]
[382688852,1756709449596,-480.0,0.00014562,2]
[382688854,1756709449605,-480.0,0.00014562,2]
[382688856,1756709449615,-480.0,0.00014563,2]
[382688858,1756709449625,-480.0,0.00014563,2]
[382688860,1756709449635,-488.18115782,0.00014563,2]
[382688862,1756709449644,-416.18769088,0.00014563,2]
[382688864,1756709449655,-480.0,0.00014563,2]
[382688866,1756709449664,-480.0,0.00014563,2]
[382688868,1756709449674,-699.51,0.00014563,2]
[382688870,1756709449683,-480.0,0.00014563,2]
[382688872,1756709449692,-844.0,0.00014563,2]
[382688874,1756709449701,-409.78399874,0.00014563,2]
[382688876,1756709449711,-480.0,0.00014563,2]
[382688878,1756709449722,-480.0,0.00014563,2]
[382688880,1756709449732,-480.0,0.00014563,2]
[382688882,1756709449741,-480.0,0.00014563,2]
[382688884,1756709449751,-480.0,0.00014563,2]
[382688886,1756709449760,-480.0,0.00014563,2]
[382688888,1756709449770,-480.0,0.00014563,2]
[382688890,1756709449779,-480.0,0.00014563,2]
[382688892,1756709449789,-480.0,0.00014563,2]
[382688894,1756709449798,-480.0,0.00014563,2]
[382688896,1756709449807,-480.0,0.00014563,2]
[382688898,1756709449817,-230.74040021,0.00014563,2]
[382688900,1756709449826,-493.77312248,0.00014563,2]
[382688902,1756709449836,-480.0,0.00014563,2]
[382688904,1756709449846,-618.18,0.00014563,2]
[382688907,1756709449855,-550.2,0.00014563,2]
[382688909,1756709449865,-480.0,0.00014563,2]
[382688911,1756709449875,-606.88,0.00014563,2]
[382688913,1756709449884,-480.0,0.00014563,2]
[382688915,1756709449894,-1200.2,0.00014563,2]
[382688917,1756709449903,-481.52879775,0.00014563,2]
[382688919,1756709449913,-480.0,0.00014563,2]
[382688921,1756709449922,-480.0,0.00014563,2]
[382688923,1756709449931,-480.0,0.00014563,2]
[382688925,1756709449941,-480.0,0.00014563,2]
[382688927,1756709449950,-480.0,0.00014563,2]